fUST/lending_fUST_20260518
["ID","MTS","AMOUNT","RATE_DAILY","PERIOD"]
[422562326,1779084642000,-151.0,0.00010959,2]
[422562324,1779084642000,-151.0,0.00010959,2]
[422562319,1779084642000,-151.0,0.00010959,2]
[422562321,1779084642000,-151.0,0.00010959,2]
[422562316,1779084642000,-199.559213,0.00010959,2]
[422562322,1779084642000,-151.0,0.00010959,2]
[422562320,1779084642000,-151.0,0.00010959,2]
[422562329,1779084642000,-243.109066,0.00010959,2]
[422562318,1779084642000,-151.0,0.00010959,2]
[422562327,1779084642000,-243.109066,0.00010959,2]
[422562346,1779084642000,-151.0,0.00010959,2]
[422562331,1779084642000,-243.109066,0.00010959,2]
[422562330,1779084642000,-243.109066,0.00010959,2]
[422562333,1779084642000,-243.109066,0.00010959,2]
[422562332,1779084642000,-243.109066,0.00010959,2]
[422562338,1779084642000,-243.109066,0.00010959,2]
[422562343,1779084642000,-243.109066,0.00010959,2]
[422562344,1779084642000,-243.109066,0.00010959,2]
[422562348,1779084642000,-151.0,0.00010959,2]
[422562337,1779084642000,-243.109066,0.00010959,2]
[422562345,1779084642000,-243.109056,0.00010959,2]
[422562347,1779084642000,-151.0,0.00010959,2]
[422562349,1779084642000,-151.0,0.00010959,2]
[422562317,1779084642000,-151.0,0.00010959,2]
[422562340,1779084642000,-243.109066,0.00010959,2]
[422562328,1779084642000,-202.234785,0.00010959,2]
[422562315,1779084642000,-199.559215,0.00010959,2]
[422562286,1779084642000,-590.71,0.00010958,2]
[422562312,1779084642000,-199.559215,0.00010959,2]
[422562339,1779084642000,-243.109066,0.00010959,2]
[422562284,1779084642000,-500.0,0.00010958,2]
[422562297,1779084642000,-199.559215,0.00010959,2]
[422562296,1779084642000,-500.0,0.00010958,2]
[422562285,1779084642000,-3940.71,0.00010958,2]
[422562290,1779084642000,-500.0,0.00010958,2]
[422562291,1779084642000,-1404.16,0.00010958,2]
[422562289,1779084642000,-500.0,0.00010958,2]
[422562288,1779084642000,-8767.52,0.00010958,2]
[422562287,1779084642000,-500.0,0.00010958,2]
[422562294,1779084642000,-500.0,0.00010958,2]
[422562293,1779084642000,-500.0,0.00010958,2]
[422562292,1779084642000,-4669.49,0.00010958,2]
[422562295,1779084642000,-500.0,0.00010958,2]
[422562314,1779084642000,-199.559215,0.00010959,2]
[422562298,1779084642000,-199.559215,0.00010959,2]
[422562301,1779084642000,-199.559215,0.00010959,2]
[422562302,1779084642000,-199.559215,0.00010959,2]
[422562299,1779084642000,-199.559215,0.00010959,2]
[422562307,1779084642000,-199.559215,0.00010959,2]
[422562304,1779084642000,-199.559215,0.00010959,2]
[422562305,1779084642000,-199.559215,0.00010959,2]
[422562303,1779084642000,-199.559215,0.00010959,2]
[422562310,1779084642000,-199.559215,0.00010959,2]
[422562309,1779084642000,-199.559215,0.00010959,2]
[422562311,1779084642000,-199.559215,0.00010959,2]
[422562306,1779084642000,-199.559215,0.00010959,2]
[422562308,1779084642000,-199.559215,0.00010959,2]
[422562313,1779084642000,-199.559215,0.00010959,2]
[422562323,1779084642000,-243.109066,0.00010959,2]
[422562300,1779084642000,-199.559215,0.00010959,2]
[422562341,1779084642000,-243.109066,0.00010959,2]
[422562407,1779084642000,-166.323195,0.00010959,2]
[422562350,1779084642000,-151.0,0.00010959,2]
[422562387,1779084642000,-151.0,0.00010959,2]
[422562384,1779084642000,-169.624824,0.00010959,2]
[422562386,1779084642000,-151.0,0.00010959,2]
[422562383,1779084642000,-169.624826,0.00010959,2]
[422562382,1779084642000,-169.624826,0.00010959,2]
[422562385,1779084642000,-151.0,0.00010959,2]
[422562392,1779084642000,-151.0,0.00010959,2]
[422562402,1779084642000,-166.323195,0.00010959,2]
[422562404,1779084642000,-166.323195,0.00010959,2]
[422562403,1779084642000,-166.323195,0.00010959,2]
[422562397,1779084642000,-276.490779,0.00010959,2]
[422562391,1779084642000,-151.0,0.00010959,2]
[422562394,1779084642000,-151.0,0.00010959,2]
[422562400,1779084642000,-166.323195,0.00010959,2]
[422562401,1779084642000,-166.323195,0.00010959,2]
[422562396,1779084642000,-151.0,0.00010959,2]
[422562393,1779084642000,-151.0,0.00010959,2]
[422562398,1779084642000,-166.323195,0.00010959,2]
[422562399,1779084642000,-166.323195,0.00010959,2]
[422562395,1779084642000,-151.0,0.00010959,2]
[422562415,1779084642000,-166.323195,0.00010959,2]
[422562406,1779084642000,-166.323195,0.00010959,2]
[422562408,1779084642000,-166.323195,0.00010959,2]
[422562413,1779084642000,-166.323195,0.00010959,2]
[422562411,1779084642000,-166.323195,0.00010959,2]
[422562410,1779084642000,-166.323195,0.00010959,2]
[422562414,1779084642000,-166.323195,0.00010959,2]
[422562412,1779084642000,-166.323195,0.00010959,2]
[422562342,1779084642000,-243.109066,0.00010959,2]
[422562390,1779084642000,-151.0,0.00010959,2]
[422562381,1779084642000,-169.624826,0.00010959,2]
[422562409,1779084642000,-166.323195,0.00010959,2]
[422562388,1779084642000,-151.0,0.00010959,2]
[422562379,1779084642000,-169.624826,0.00010959,2]
[422562354,1779084642000,-151.0,0.00010959,2]
[422562351,1779084642000,-151.0,0.00010959,2]
[422562352,1779084642000,-151.0,0.00010959,2]
[422562361,1779084642000,-151.0,0.00010959,2]
[422562363,1779084642000,-219.936,0.00010959,2]
[422562357,1779084642000,-151.0,0.00010959,2]
[422562358,1779084642000,-151.0,0.00010959,2]
[422562353,1779084642000,-151.0,0.00010959,2]
[422562355,1779084642000,-151.0,0.00010959,2]
[422562359,1779084642000,-151.0,0.00010959,2]
[422562356,1779084642000,-151.0,0.00010959,2]
[422562362,1779084642000,-151.0,0.00010959,2]
[422562365,1779084642000,-169.624826,0.00010959,2]
[422562375,1779084642000,-169.624826,0.00010959,2]
[422562360,1779084642000,-151.0,0.00010959,2]
[422562364,1779084642000,-299.39176778,0.00010959,7]
[422562376,1779084642000,-169.624826,0.00010959,2]
[422562380,1779084642000,-169.624826,0.00010959,2]
[422562377,1779084642000,-169.624826,0.00010959,2]
[422562389,1779084642000,-151.0,0.00010959,2]
[422562373,1779084642000,-169.624826,0.00010959,2]
[422562374,1779084642000,-169.624826,0.00010959,2]
[422562368,1779084642000,-169.624826,0.00010959,2]
[422562378,1779084642000,-169.624826,0.00010959,2]
[422562372,1779084642000,-169.624826,0.00010959,2]
[422562370,1779084642000,-169.624826,0.00010959,2]
[422562369,1779084642000,-169.624826,0.00010959,2]
[422562371,1779084642000,-169.624826,0.00010959,2]
[422562367,1779084642000,-169.624826,0.00010959,2]
[422562366,1779084642000,-169.624826,0.00010959,2]
[422562448,1779084643000,-442.979914,0.00010959,2]
[422562440,1779084643000,-720.678505,0.00010959,2]
[422562441,1779084643000,-442.979914,0.00010959,2]
[422562450,1779084643000,-442.979914,0.00010959,2]
[422562452,1779084643000,-442.979914,0.00010959,2]
[422562454,1779084643000,-442.979914,0.00010959,2]
[422562451,1779084643000,-442.979914,0.00010959,2]
[422562456,1779084643000,-442.979914,0.00010959,2]
[422562443,1779084643000,-442.979914,0.00010959,2]
[422562459,1779084643000,-442.979914,0.00010959,2]
[422562476,1779084643000,-152.0,0.00010969,7]
[422562467,1779084643000,-442.979914,0.00010959,2]
[422562464,1779084643000,-442.979914,0.00010959,2]
[422562466,1779084643000,-442.979914,0.00010959,2]
[422562469,1779084643000,-442.979914,0.00010959,2]
[422562473,1779084643000,-442.979905,0.00010959,2]
[422562475,1779084643000,-1652.60826498,0.00010959,2]
[422562477,1779084643000,-152.0,0.00010969,7]
[422562488,1779084643000,-178.37424209,0.00011,2]
[422562449,1779084643000,-442.979914,0.00010959,2]
[422562492,1779084643000,-151.0,0.00011,2]
[422562462,1779084643000,-442.979914,0.00010959,2]
[422562439,1779084643000,-720.678501,0.00010959,2]
[422562422,1779084643000,-720.678501,0.00010959,2]
[422562435,1779084643000,-720.678501,0.00010959,2]
[422562483,1779084643000,-150385.37211243,0.00011,2]
[422562419,1779084643000,-720.678501,0.00010959,2]
[422562416,1779084643000,-166.323195,0.00010959,2]
[422562417,1779084643000,-166.323195,0.00010959,2]
[422562418,1779084643000,-166.323195,0.00010959,2]
[422562421,1779084643000,-720.678501,0.00010959,2]
[422562424,1779084643000,-720.678501,0.00010959,2]
[422562425,1779084643000,-720.678501,0.00010959,2]
[422562433,1779084643000,-720.678501,0.00010959,2]
[422562420,1779084643000,-720.678501,0.00010959,2]
[422562432,1779084643000,-720.678501,0.00010959,2]
[422562431,1779084643000,-720.678501,0.00010959,2]
[422562423,1779084643000,-720.678501,0.00010959,2]
[422562429,1779084643000,-720.678501,0.00010959,2]
[422562426,1779084643000,-720.678501,0.00010959,2]
[422562428,1779084643000,-720.678501,0.00010959,2]
[422562427,1779084643000,-720.678501,0.00010959,2]
[422562430,1779084643000,-720.678501,0.00010959,2]
[422562436,1779084643000,-720.678501,0.00010959,2]
[422562444,1779084643000,-442.979914,0.00010959,2]
[422562438,1779084643000,-720.678501,0.00010959,2]
[422562442,1779084643000,-442.979914,0.00010959,2]
[422562447,1779084643000,-442.979914,0.00010959,2]
[422562445,1779084643000,-442.979914,0.00010959,2]
[422562481,1779084643000,-151.0,0.00010991,2]
[422562487,1779084643000,-200.0,0.00011,2]
[422562478,1779084643000,-152.0,0.00010973,7]
[422562513,1779084643000,-151.0,0.00011,2]
[422562517,1779084643000,-151.0,0.00011,2]
[422562518,1779084643000,-151.0,0.00011,2]
[422562516,1779084643000,-151.0,0.00011,2]
[422562519,1779084643000,-151.0,0.00011,2]
[422562520,1779084643000,-151.0,0.00011,2]
[422562522,1779084643000,-598.78353557,0.00011035,7]
[422562521,1779084643000,-289.52779449,0.00011035,7]
[422562523,1779084643000,-160.0,0.00011042,3]
[422562524,1779084643000,-151.0,0.000111,2]
[422562511,1779084643000,-151.0,0.00011,2]
[422562527,1779084643000,-151.0,0.000111,2]
[422562526,1779084643000,-151.0,0.000111,2]
[422562528,1779084643000,-151.0,0.000111,2]
[422562530,1779084643000,-151.0,0.000111,2]
[422562531,1779084643000,-151.0,0.000111,2]
[422562532,1779084643000,-151.0,0.000111,2]
[422562536,1779084643000,-354.30695999,0.00011193,7]
[422562533,1779084643000,-151.0,0.000111,2]
[422562534,1779084643000,-151.0,0.000111,2]
[422562535,1779084643000,-151.0,0.000111,2]
[422562493,1779084643000,-151.0,0.00011,2]
[422562529,1779084643000,-151.0,0.000111,2]
[422562514,1779084643000,-151.0,0.00011,2]
[422562525,1779084643000,-151.0,0.000111,2]
[422562509,1779084643000,-151.0,0.00011,2]
[422562480,1779084643000,-152.0,0.00010978,7]
[422562515,1779084643000,-151.0,0.00011,2]
[422562479,1779084643000,-152.0,0.00010973,7]
[422562490,1779084643000,-151.0,0.00011,2]
[422562484,1779084643000,-467.0,0.00011,5]
[422562489,1779084643000,-151.0,0.00011,2]
[422562486,1779084643000,-200.0,0.00011,10]
[422562498,1779084643000,-151.0,0.00011,2]
[422562497,1779084643000,-151.0,0.00011,2]
[422562499,1779084643000,-151.0,0.00011,2]
[422562500,1779084643000,-151.0,0.00011,2]
[422562496,1779084643000,-151.0,0.00011,2]
[422562494,1779084643000,-151.0,0.00011,2]
[422562495,1779084643000,-151.0,0.00011,2]
[422562512,1779084643000,-151.0,0.00011,2]
[422562507,1779084643000,-200.0,0.00011,2]
[422562508,1779084643000,-151.0,0.00011,2]
[422562506,1779084643000,-151.0,0.00011,2]
[422562505,1779084643000,-151.0,0.00011,2]
[422562510,1779084643000,-151.0,0.00011,2]
[422562502,1779084643000,-151.0,0.00011,2]
[422562503,1779084643000,-151.0,0.00011,2]
[422562501,1779084643000,-151.0,0.00011,2]
[422562504,1779084643000,-151.0,0.00011,2]
[422562574,1779084644000,-800.23,0.00011232,2]
[422562568,1779084644000,-621.07,0.00011232,2]
[422562566,1779084644000,-500.0,0.00011232,2]
[422562570,1779084644000,-500.0,0.00011232,2]
[422562581,1779084644000,-3014.81,0.00011232,2]
[422562580,1779084644000,-1044.79,0.00011232,2]
[422562576,1779084644000,-603.61,0.00011232,2]
[422562573,1779084644000,-500.0,0.00011232,2]
[422562577,1779084644000,-1489.26,0.00011232,2]
[422562572,1779084644000,-738.09,0.00011232,2]
[422562569,1779084644000,-1350.9,0.00011232,2]
[422562571,1779084644000,-540.59,0.00011232,2]
[422562590,1779084644000,-514.55811027,0.00011232,2]
[422562575,1779084644000,-661.42,0.00011232,2]
[422562578,1779084644000,-500.0,0.00011232,2]
[422562582,1779084644000,-500.0,0.00011232,2]
[422562584,1779084644000,-500.0,0.00011232,2]
[422562585,1779084644000,-500.0,0.00011232,2]
[422562583,1779084644000,-1634.97,0.00011232,2]
[422562587,1779084644000,-689.01,0.00011232,2]
[422562588,1779084644000,-836.03,0.00011232,2]
[422562589,1779084644000,-500.0,0.00011232,2]
[422562586,1779084644000,-500.0,0.00011232,2]
[422562591,1779084644000,-1361.35,0.00011232,2]
[422562567,1779084644000,-500.0,0.00011232,2]
[422562579,1779084644000,-500.0,0.00011232,2]
[422562565,1779084644000,-500.0,0.00011232,2]
[422562540,1779084644000,-151.0,0.000112,2]
[422562564,1779084644000,-659.02,0.00011232,2]
[422562592,1779084644000,-500.0,0.00011232,2]
[422562539,1779084644000,-151.0,0.000112,2]
[422562538,1779084644000,-151.0,0.000112,2]
[422562537,1779084644000,-151.0,0.000112,2]
[422562542,1779084644000,-151.0,0.000112,2]
[422562543,1779084644000,-151.0,0.000112,2]
[422562541,1779084644000,-151.0,0.000112,2]
[422562544,1779084644000,-151.0,0.000112,2]
[422562546,1779084644000,-500.0,0.00011231,2]
[422562545,1779084644000,-151.0,0.000112,2]
[422562547,1779084644000,-500.0,0.00011232,2]
[422562548,1779084644000,-500.0,0.00011232,2]
[422562562,1779084644000,-500.0,0.00011232,2]
[422562549,1779084644000,-1162.2906,0.00011232,2]
[422562550,1779084644000,-817.4123,0.00011232,2]
[422562554,1779084644000,-724.07,0.00011232,2]
[422562552,1779084644000,-924.2918,0.00011232,2]
[422562556,1779084644000,-500.0,0.00011232,2]
[422562557,1779084644000,-500.0,0.00011232,2]
[422562553,1779084644000,-1411.4211,0.00011232,2]
[422562555,1779084644000,-970.52,0.00011232,2]
[422562559,1779084644000,-500.0,0.00011232,2]
[422562558,1779084644000,-500.0,0.00011232,2]
[422562561,1779084644000,-500.0,0.00011232,2]
[422562560,1779084644000,-500.0,0.00011232,2]
[422562563,1779084644000,-867.01,0.00011232,2]
[422562551,1779084644000,-1330.2511,0.00011232,2]
[422562594,1779084644000,-500.0,0.00011232,2]
[422562635,1779084644000,-1630.8,0.00011232,2]
[422562596,1779084644000,-500.0,0.00011232,2]
[422562634,1779084644000,-281.07958183,0.00011232,2]
[422562640,1779084644000,-733.39,0.00011232,2]
[422562641,1779084644000,-1277.39,0.00011232,2]
[422562643,1779084644000,-693.75,0.00011232,2]
[422562639,1779084644000,-2236.72,0.00011232,2]
[422562644,1779084644000,-2028.3,0.00011232,2]
[422562642,1779084644000,-500.0,0.00011232,2]
[422562645,1779084644000,-500.0,0.00011232,2]
[422562647,1779084644000,-556.71,0.00011232,2]
[422562657,1779084644000,-778.11,0.00011232,2]
[422562646,1779084644000,-1161.56,0.00011232,2]
[422562650,1779084644000,-500.0,0.00011232,2]
[422562638,1779084644000,-500.0,0.00011232,2]
[422562648,1779084644000,-1466.47,0.00011232,2]
[422562653,1779084644000,-1131.01,0.00011232,2]
[422562652,1779084644000,-4269.6,0.00011232,2]
[422562655,1779084644000,-719.0,0.00011232,2]
[422562651,1779084644000,-500.0,0.00011232,2]
[422562654,1779084644000,-681.31,0.00011232,2]
[422562656,1779084644000,-2586.43,0.00011232,2]
[422562659,1779084644000,-507.04,0.00011232,2]
[422562661,1779084644000,-500.0,0.00011232,2]
[422562663,1779084644000,-615.36,0.00011232,2]
[422562660,1779084644000,-560.13,0.00011232,2]
[422562662,1779084644000,-500.0,0.00011232,2]
[422562593,1779084644000,-500.0,0.00011232,2]
[422562649,1779084644000,-500.0,0.00011232,2]
[422562633,1779084644000,-641.49,0.00011232,2]
[422562658,1779084644000,-500.0,0.00011232,2]
[422562636,1779084644000,-1344.26,0.00011232,2]
[422562606,1779084644000,-878.96,0.00011232,2]
[422562637,1779084644000,-500.0,0.00011232,2]
[422562608,1779084644000,-500.0,0.00011232,2]
[422562595,1779084644000,-1524.4,0.00011232,2]
[422562600,1779084644000,-500.0,0.00011232,2]
[422562609,1779084644000,-824.05,0.00011232,2]
[422562607,1779084644000,-567.98594983,0.00011232,2]
[422562598,1779084644000,-1196.39,0.00011232,2]
[422562601,1779084644000,-2217.34,0.00011232,2]
[422562603,1779084644000,-4089.53,0.00011232,2]
[422562602,1779084644000,-500.0,0.00011232,2]
[422562611,1779084644000,-500.0,0.00011232,2]
[422562613,1779084644000,-500.0,0.00011232,2]
[422562605,1779084644000,-500.0,0.00011232,2]
[422562615,1779084644000,-787.28,0.00011232,2]
[422562664,1779084644000,-500.0,0.00011232,2]
[422562632,1779084644000,-781.18,0.00011232,2]
[422562628,1779084644000,-747.14,0.00011232,2]
[422562629,1779084644000,-1015.76,0.00011232,2]
[422562630,1779084644000,-944.69,0.00011232,2]
[422562626,1779084644000,-1206.74,0.00011232,2]
[422562622,1779084644000,-503.69,0.00011232,2]
[422562631,1779084644000,-785.58,0.00011232,2]
[422562620,1779084644000,-500.0,0.00011232,2]
[422562619,1779084644000,-500.0,0.00011232,2]
[422562617,1779084644000,-4044.9,0.00011232,2]
[422562624,1779084644000,-500.0,0.00011232,2]
[422562709,1779084645000,-1299.3,0.00011232,2]
[422562708,1779084645000,-1018.73,0.00011232,2]
[422562704,1779084645000,-500.0,0.00011232,2]
[422562706,1779084645000,-500.0,0.00011232,2]
[422562705,1779084645000,-500.0,0.00011232,2]
[422562703,1779084645000,-500.59174331,0.00011232,2]
[422562707,1779084645000,-500.0,0.00011232,2]
[422562702,1779084645000,-2222.27,0.00011232,2]
[422562699,1779084645000,-954.1,0.00011232,2]
[422562700,1779084645000,-500.0,0.00011232,2]
[422562710,1779084645000,-500.0,0.00011232,2]
[422562713,1779084645000,-4791.82,0.00011232,2]
[422562701,1779084645000,-500.0,0.00011232,2]
[422562723,1779084645000,-4353.28,0.00011232,2]
[422562727,1779084645000,-3456.96,0.00011232,2]
[422562724,1779084645000,-787.75,0.00011232,2]
[422562725,1779084645000,-500.0,0.00011232,2]
[422562717,1779084645000,-762.77,0.00011232,2]
[422562716,1779084645000,-500.0,0.00011232,2]
[422562712,1779084645000,-500.0,0.00011232,2]
[422562715,1779084645000,-10903.4,0.00011232,2]
[422562719,1779084645000,-2249.56,0.00011232,2]
[422562721,1779084645000,-990.57,0.00011232,2]
[422562718,1779084645000,-3757.48,0.00011232,2]
[422562722,1779084645000,-634.11,0.00011232,2]
[422562720,1779084645000,-500.0,0.00011232,2]
[422562738,1779084645000,-2802.22,0.00011232,2]
[422562737,1779084645000,-4348.4,0.00011232,2]
[422562711,1779084645000,-1116.22,0.00011232,2]
[422562714,1779084645000,-239.56305244,0.00011232,2]
[422562698,1779084645000,-543.16,0.00011232,2]
[422562667,1779084645000,-500.0,0.00011232,2]
[422562687,1779084645000,-633.96,0.00011232,2]
[422562670,1779084645000,-1847.21,0.00011232,2]
[422562671,1779084645000,-628.68,0.00011232,2]
[422562668,1779084645000,-4409.65,0.00011232,2]
[422562669,1779084645000,-500.0,0.00011232,2]
[422562666,1779084645000,-500.0,0.00011232,2]
[422562665,1779084645000,-500.0,0.00011232,2]
[422562672,1779084645000,-500.0,0.00011232,2]
[422562673,1779084645000,-500.0,0.00011232,2]
[422562674,1779084645000,-500.0,0.00011232,2]
[422562676,1779084645000,-662.84,0.00011232,2]
[422562679,1779084645000,-500.0,0.00011232,2]
[422562675,1779084645000,-500.0,0.00011232,2]
[422562677,1779084645000,-1553.01,0.00011232,2]
[422562681,1779084645000,-624.19,0.00011232,2]
[422562697,1779084645000,-1519.11,0.00011232,2]
[422562680,1779084645000,-972.64,0.00011232,2]
[422562682,1779084645000,-500.0,0.00011232,2]
[422562685,1779084645000,-735.26,0.00011232,2]
[422562684,1779084645000,-624.98,0.00011232,2]
[422562683,1779084645000,-2109.77,0.00011232,2]
[422562686,1779084645000,-500.0,0.00011232,2]
[422562688,1779084645000,-1106.44,0.00011232,2]
[422562689,1779084645000,-3242.78,0.00011232,2]
[422562691,1779084645000,-500.0,0.00011232,2]
[422562690,1779084645000,-500.0,0.00011232,2]
[422562692,1779084645000,-500.0,0.00011232,2]
[422562696,1779084645000,-500.0,0.00011232,2]
[422562693,1779084645000,-681.55,0.00011232,2]
[422562694,1779084645000,-500.0,0.00011232,2]
[422562695,1779084645000,-500.0,0.00011232,2]
[422562678,1779084645000,-500.0,0.00011232,2]
[422562726,1779084645000,-674.63,0.00011232,2]
[422562739,1779084645000,-811.49,0.00011232,2]
[422562729,1779084645000,-712.4,0.00011232,2]
[422562768,1779084645000,-500.86906515,0.00011232,2]
[422562766,1779084645000,-500.0,0.00011232,2]
[422562778,1779084645000,-11768.02,0.00011232,2]
[422562774,1779084645000,-908.12,0.00011232,2]
[422562773,1779084645000,-500.0,0.00011232,2]
[422562770,1779084645000,-500.0,0.00011232,2]
[422562769,1779084645000,-2153.39,0.00011232,2]
[422562775,1779084645000,-500.0,0.00011232,2]
[422562772,1779084645000,-2352.16,0.00011232,2]
[422562771,1779084645000,-3908.48,0.00011232,2]
[422562776,1779084645000,-2131.04,0.00011232,2]
[422562779,1779084645000,-1074.49,0.00011232,2]
[422562780,1779084645000,-2516.9,0.00011232,2]
[422562781,1779084645000,-517.86,0.00011232,2]
[422562777,1779084645000,-500.0,0.00011232,2]
[422562782,1779084645000,-668.79,0.00011232,2]
[422562790,1779084645000,-5105.02,0.00011232,2]
[422562784,1779084645000,-500.0,0.00011232,2]
[422562786,1779084645000,-500.0,0.00011232,2]
[422562785,1779084645000,-2746.46,0.00011232,2]
[422562788,1779084645000,-389.00559278,0.00011232,2]
[422562789,1779084645000,-1237.66,0.00011232,2]
[422562791,1779084645000,-500.0,0.00011232,2]
[422562792,1779084645000,-500.0,0.00011232,2]
[422562787,1779084645000,-500.0,0.00011232,2]
[422562793,1779084645000,-3180.63,0.00011232,2]
[422562795,1779084645000,-500.0,0.00011232,2]
[422562728,1779084645000,-1216.29,0.00011232,2]
[422562794,1779084645000,-500.0,0.00011232,2]
[422562797,1779084645000,-1044.08,0.00011232,2]
[422562783,1779084645000,-5228.32,0.00011232,2]
[422562767,1779084645000,-500.0,0.00011232,2]
[422562796,1779084645000,-500.0,0.00011232,2]
[422562762,1779084645000,-9172.24,0.00011232,2]
[422562761,1779084645000,-2847.17,0.00011232,2]
[422562731,1779084645000,-500.0,0.00011232,2]
[422562733,1779084645000,-500.0,0.00011232,2]
[422562732,1779084645000,-1302.75,0.00011232,2]
[422562734,1779084645000,-641.12,0.00011232,2]
[422562736,1779084645000,-500.0,0.00011232,2]
[422562735,1779084645000,-3186.51,0.00011232,2]
[422562740,1779084645000,-878.66,0.00011232,2]
[422562742,1779084645000,-500.0,0.00011232,2]
[422562746,1779084645000,-1940.81,0.00011232,2]
[422562751,1779084645000,-500.0,0.00011232,2]
[422562741,1779084645000,-948.52,0.00011232,2]
[422562752,1779084645000,-7839.09,0.00011232,2]
[422562743,1779084645000,-3754.81,0.00011232,2]
[422562745,1779084645000,-500.0,0.00011232,2]
[422562730,1779084645000,-500.0,0.00011232,2]
[422562749,1779084645000,-13284.26,0.00011232,2]
[422562744,1779084645000,-3763.48,0.00011232,2]
[422562759,1779084645000,-924.09,0.00011232,2]
[422562756,1779084645000,-3447.46,0.00011232,2]
[422562757,1779084645000,-600.99,0.00011232,2]
[422562758,1779084645000,-500.0,0.00011232,2]
[422562753,1779084645000,-500.0,0.00011232,2]
[422562763,1779084645000,-578.79,0.00011232,2]
[422562765,1779084645000,-60848.5,0.00011232,2]
[422562747,1779084645000,-514.5318364,0.00011232,2]
[422562755,1779084645000,-1622.27,0.00011232,2]
[422562748,1779084645000,-500.0,0.00011232,2]
[422562760,1779084645000,-500.0,0.00011232,2]
[422562754,1779084645000,-500.0,0.00011232,2]
[422562764,1779084645000,-589.78,0.00011232,2]
[422562750,1779084645000,-7566.41,0.00011232,2]
[422562842,1779084646000,-500.0,0.00011506,2]
[422562840,1779084646000,-500.0,0.00011506,2]
[422562831,1779084646000,-1162.2906,0.00011506,2]
[422562834,1779084646000,-4106.28601474,0.00011506,2]
[422562832,1779084646000,-817.4123,0.00011506,2]
[422562833,1779084646000,-1330.2511,0.00011506,2]
[422562835,1779084646000,-924.2918,0.00011506,2]
[422562841,1779084646000,-500.0,0.00011506,2]
[422562838,1779084646000,-970.52,0.00011506,2]
[422562836,1779084646000,-1411.4211,0.00011506,2]
[422562837,1779084646000,-724.07,0.00011506,2]
[422562839,1779084646000,-500.0,0.00011506,2]
[422562843,1779084646000,-500.0,0.00011506,2]
[422562855,1779084646000,-500.0,0.00011506,2]
[422562844,1779084646000,-500.0,0.00011506,2]
[422562848,1779084646000,-659.02,0.00011506,2]
[422562850,1779084646000,-500.0,0.00011506,2]
[422562849,1779084646000,-500.0,0.00011506,2]
[422562845,1779084646000,-500.0,0.00011506,2]
[422562852,1779084646000,-621.07,0.00011506,2]
[422562851,1779084646000,-500.0,0.00011506,2]
[422562854,1779084646000,-1350.9,0.00011506,2]